Workbook

Sheet Version history
B2: Date | C2: Version | D2: Comments

Sheet COVER
C8: INTRO
C9: Le Centre régional de l'Énergie renouvelable et de l'efficacité énergétique de la CEDEAO (ECREEE), au nom des membres de la Communauté économique des États de l'Afrique de l'Ouest (CEDEAO), a demandé un soutien au service de dialogue par le partenariat de l'UE pour l'initiative énergétique (EUEI PDF) pour le développement d'un ensemble d'outils (boîte à outils) pour définir des tarifs pour les énergies renouvelables et fournir une assistance technique pour le calcul des tarifs des énergies renouvelables. En conséquence, EMRC (membre du MRC Group) a été mandaté par EUEI PDF pour développer une boîte à outils comprenant plusieurs modèles tarifaires standard pour calculer les tarifs des technologies renouvelables et un manuel d'utilisation associé. Ce modèle basé sur Excel couvre la conversion d'unités pour les combustibles.
C14: PANNEAU DE COMMANDE
G19: Status: | H19: =WksProtected('INPUT and OUTPUT'!A1) -> Protégé
C27: BOITE À OUTILS
C28: Ceci est le modèle conversion d'unités des combustibles | H28: La boîte à outils est composée de 6 modèles Excel:
F30: Trois modèles de projects renouvelables | P30: Un modèle
P31: d'objetifs de politique
I33: 1. IPP Renouvelable | K33: 2. Prossommateur | M33: 3. Mini-réseau vert | Q33: 6. Modèle courbe d'offre
F38: Deux modèles pour | I38: 4. Profil énergie éolienne
F39: aider à la conversion
F40: de données d'entrée | I40: 5. Conversion unités combustible
C45: LÉGENDE
D46: Onglets: | Q46: Code de couleurs pour les cellules:
E47: Cover | G47: Introduction avec des informations générales sur le modèle
E48: Fuel unit convertor | G48: Feuille d'entrée et sortie de données | R48: 12.34 | S48: Entrée (données codées)
E49: Support fuel data | G49: Données auxiliaires pour la conversion des combustibles | R49: 12.34 | S49: Formules et références (calculs)
E50: Support units data | G50: Données auxiliaires et calculs pour la conversion d'unités | R50: 12.34 | S50: Scénario ou sélection actuelle
R51: 12.34 | S51: Zone inactif (avec la sélection d'option actuelle)
C59: AVERTISSEMENT
D60: Cet outil financier est uniquement à des fins d'information. Le MRC Group, ECREEE et l'EUEI PDF ne sont pas responsables et n'acceptent aucune responsabilité quant à l'exactitude de cet outil financier ou à toute donnée qu'il contient.
D61: Cet outil financier ne représente pas une approbation par MRC Group, ECREEE ou l'EUEI PDF de toute activité ou projet.

Sheet INPUT and OUTPUT
B1: Convertisseur d'unités de combustible
B3: Données d'entrée
B5: Type de combustible | D5: Residual oil (HFO) | F5: Du tableau dans la fiche technique de carburant de soutien (fuel data - heating values)
B6: Valeur Calorifique: Standard or User Defined? | D6: Standard
B7: Valeur Calorifique Inférieure (LHV) ou Supérieure (HHV)? | D7: HHV
B9: Entrée manuel (user defined) pour LHV ou HHV | F9: MJ | G9: (Monnaie) | J9: * Veuillez noter que les prix et les valeurs de chauffage des combustibles solides ne doivent être exprimés que par unité de masse
F10: kg | G10: (Unités de volume ou masse)
B12: Valeur calorifique sélectionnée | D12: =+IF(D6="User Defined",$D$9,INDEX('Fuel Data - heating values'!$F$5:$L$85,MATCH($D$5,'Fuel Data - heating values'!$F$5:$F$85,0),MATCH('INPUT and OUTPUT'!$D$7,'Fuel Data - heating values'!$F$5:$L$5,0))) -> 11.63066227 | F12: =+IF(D6="User Defined",$F$9,INDEX('Fuel Data - heating values'!$A$5:$L$85,MATCH($D$5,'Fuel Data - heating values'!$A$5:$A$85,0),MATCH('INPUT and OUTPUT'!$D$7&" numerator unit",'Fuel Data - heating values'!$A$5:$L$5,0))) -> MWh | G12: (Monnaie)
F13: =+IF(D6="User Defined",$F$10,INDEX('Fuel Data - heating values'!$A$5:$L$85,MATCH($D$5,'Fuel Data - heating values'!$A$5:$A$85,0),MATCH('INPUT and OUTPUT'!$D$7&" denominator unit",'Fuel Data - heating values'!$A$5:$L$5,0))) -> m3 | G13: (Unités de volume ou masse)
B15: Prix du combustible d'entrée | F15: USD | G15: (Monnaie)
F16: Metric Tonne | G16: (Unités d'énergie, volume ou masse)
B18: Sorties
B20: Prix du combustible de sortie | D20: =+IFERROR($D$15*INDEX('Unit conversion calculations'!$B$62:$Q$77,MATCH($F$21,'Unit conversion calculations'!$B$62:$B$77,0),MATCH('INPUT and OUTPUT'!$F$16,'Unit conversion calculations'!$B$62:$Q$62,0)),"Error please review Inputs") -> 0 | F20: =+F15 -> USD | G20: (Monnaie)
F21: MWh | G21: (Unités d'énergie, volume ou masse)

Sheet Fuel Data - heating values
A1: Specifications of Fuels
A2: SOURCE: GREET Transportation Fuel Cycle Analysis Model, GREET 1.8b, developed by Argonne National Laboratory. https://greet.es.anl.gov/
A4: Fuel | B4: Density | C4: LHV | D4: HHV
G5: LHV | H5: LHV numerator unit | I5: LHV denominator unit | J5: HHV | K5: HHV numerator unit | L5: HHV denominator unit | M5: Density
A6: Liquid Fuels: | B6: grams/gal | C6: Btu/gal | D6: Btu/gal | G6: MWh/m3 | J6: MWh/m3 | M6: g/m3
A7: Acetone | B7: 2964 | C7: 83127 | D7: 89511 | F7: =A7 -> Acetone | G7: =+C7*'Unit conversion calculations'!$D$6*'Unit conversion calculations'!$E$12 -> 6.440757197 | H7: MWh | I7: m3 | J7: =+D7*'Unit conversion calculations'!$D$6*'Unit conversion calculations'!$E$12 -> 6.935395449 | K7: MWh | L7: m3 | M7: =+B7*'Unit conversion calculations'!$E$12 -> 783005.9632
A8: Bitumen | B8: 3839.682125 | C8: 152370.9013 | D8: 162963.5308 | F8: Bitumen | G8: =+C8*'Unit conversion calculations'!$D$6*'Unit conversion calculations'!$E$12 -> 11.80583901 | H8: MWh | I8: m3 | J8: =+D8*'Unit conversion calculations'!$D$6*'Unit conversion calculations'!$E$12 -> 12.62656579 | K8: MWh | L8: m3 | M8: =+B8*'Unit conversion calculations'!$E$12 -> 1014336.707
A9: Bunker fuel for ocean tanker (HFO) | B9: 3752 | C9: 140352.5222 | D9: 150110 | F9: Bunker fuel for ocean tanker (HFO) | G9: =+C9*'Unit conversion calculations'!$D$6*'Unit conversion calculations'!$E$12 -> 10.87464383 | H9: MWh | I9: m3 | J9: =+D9*'Unit conversion calculations'!$D$6*'Unit conversion calculations'!$E$12 -> 11.63066227 | K9: MWh | L9: m3 | M9: =+B9*'Unit conversion calculations'!$E$12 -> 991173.5404
A10: Butane | B10: 2213 | C10: 94970 | D10: 103220 | F10: Butane | G10: =+C10*'Unit conversion calculations'!$D$6*'Unit conversion calculations'!$E$12 -> 7.358363841 | H10: MWh | I10: m3 | J10: =+D10*'Unit conversion calculations'!$D$6*'Unit conversion calculations'!$E$12 -> 7.997581506 | K10: MWh | L10: m3 | M10: =+B10*'Unit conversion calculations'!$E$12 -> 584612.7519
A11: Butanol | B11: 3065 | C11: 99837 | D11: 108458 | F11: Butanol | G11: =+C11*'Unit conversion calculations'!$D$6*'Unit conversion calculations'!$E$12 -> 7.735463523 | H11: MWh | I11: m3 | J11: =+D11*'Unit conversion calculations'!$D$6*'Unit conversion calculations'!$E$12 -> 8.403426613 | K11: MWh | L11: m3 | M11: =+B11*'Unit conversion calculations'!$E$12 -> 809687.3405
A12: CA gasoline | B12: 2835.562 | C12: 112193.52 | D12: 120438.62 | F12: CA gasoline | G12: =+C12*'Unit conversion calculations'!$D$6*'Unit conversion calculations'!$E$12 -> 8.692858174 | H12: MWh | I12: m3 | J12: =+D12*'Unit conversion calculations'!$D$6*'Unit conversion calculations'!$E$12 -> 9.331696183 | K12: MWh | L12: m3 | M12: =+B12*'Unit conversion calculations'!$E$12 -> 749076.2331
A13: Conventional Jet Fuel | B13: 3035.899622 | C13: 124307.0342 | D13: 132948.6944 | F13: Conventional Jet Fuel | G13: =+C13*'Unit conversion calculations'!$D$6*'Unit conversion calculations'!$E$12 -> 9.631424512 | H13: MWh | I13: m3 | J13: =+D13*'Unit conversion calculations'!$D$6*'Unit conversion calculations'!$E$12 -> 10.30098837 | K13: MWh | L13: m3 | M13: =+B13*'Unit conversion calculations'!$E$12 -> 801999.8339
A14: Crude oil | B14: 3205 | C14: 129670 | D14: 138350 | F14: Crude oil | G14: =+C14*'Unit conversion calculations'!$D$6*'Unit conversion calculations'!$E$12 -> 10.04695208 | H14: MWh | I14: m3 | J14: =+D14*'Unit conversion calculations'!$D$6*'Unit conversion calculations'!$E$12 -> 10.71948655 | K14: MWh | L14: m3 | M14: =+B14*'Unit conversion calculations'!$E$12 -> 846671.4278
A15: Diesel for non-road engines | B15: 3167 | C15: 128450 | D15: 137380 | F15: Diesel for non-road engines | G15: =+C15*'Unit conversion calculations'!$D$6*'Unit conversion calculations'!$E$12 -> 9.952425349 | H15: MWh | I15: m3 | J15: =+D15*'Unit conversion calculations'!$D$6*'Unit conversion calculations'!$E$12 -> 10.64433005 | K15: MWh | L15: m3 | M15: =+B15*'Unit conversion calculations'!$E$12 -> 836632.8898
A16: Dilbit (After Recovery) | B16: 3839.682125 | C16: 152370.9013 | D16: 162963.5308 | F16: Dilbit (After Recovery) | G16: =+C16*'Unit conversion calculations'!$D$6*'Unit conversion calculations'!$E$12 -> 11.80583901 | H16: MWh | I16: m3 | J16: =+D16*'Unit conversion calculations'!$D$6*'Unit conversion calculations'!$E$12 -> 12.62656579 | K16: MWh | L16: m3 | M16: =+B16*'Unit conversion calculations'!$E$12 -> 1014336.707
A17: Dilbit (Before Recovery) | B17: 3500.477488 | C17: 145194.189 | D17: 155287.9027 | F17: Dilbit (Before Recovery) | G17: =+C17*'Unit conversion calculations'!$D$6*'Unit conversion calculations'!$E$12 -> 11.24978067 | H17: MWh | I17: m3 | J17: =+D17*'Unit conversion calculations'!$D$6*'Unit conversion calculations'!$E$12 -> 12.03185099 | K17: MWh | L17: m3 | M17: =+B17*'Unit conversion calculations'!$E$12 -> 924728.3222
A18: Diluent | B18: 2709 | C18: 128448.5269 | D18: 137378.1037 | F18: Diluent | G18: =+C18*'Unit conversion calculations'!$D$6*'Unit conversion calculations'!$E$12 -> 9.952311213 | H18: MWh | I18: m3 | J18: =+D18*'Unit conversion calculations'!$D$6*'Unit conversion calculations'!$E$12 -> 10.64418312 | K18: MWh | L18: m3 | M18: =+B18*'Unit conversion calculations'!$E$12 -> 715642.0898
A19: Dimethoxy methane (DMM) | B19: 3255 | C19: 72200 | D19: 79196.8954 | F19: Dimethoxy methane (DMM) | G19: =+C19*'Unit conversion calculations'!$D$6*'Unit conversion calculations'!$E$12 -> 5.594123084 | H19: MWh | I19: m3 | J19: =+D19*'Unit conversion calculations'!$D$6*'Unit conversion calculations'!$E$12 -> 6.136249041 | K19: MWh | L19: m3 | M19: =+B19*'Unit conversion calculations'!$E$12 -> 859880.0304
A20: Dimethyl ether (DME) | B20: 2518 | C20: 68930 | D20: 75610 | F20: Dimethyl ether (DME) | G20: =+C20*'Unit conversion calculations'!$D$6*'Unit conversion calculations'!$E$12 -> 5.340760446 | H20: MWh | I20: m3 | J20: =+D20*'Unit conversion calculations'!$D$6*'Unit conversion calculations'!$E$12 -> 5.858333053 | K20: MWh | L20: m3 | M20: =+B20*'Unit conversion calculations'!$E$12 -> 665185.2278
A21: E-Diesel Additives | B21: 2819 | C21: 116090 | D21: 124340 | F21: E-Diesel Additives | G21: =+C21*'Unit conversion calculations'!$D$6*'Unit conversion calculations'!$E$12 -> 8.994761064 | H21: MWh | I21: m3 | J21: =+D21*'Unit conversion calculations'!$D$6*'Unit conversion calculations'!$E$12 -> 9.63397873 | K21: MWh | L21: m3 | M21: =+B21*'Unit conversion calculations'!$E$12 -> 744701.0156
A22: Ethanol | B22: 2988 | C22: 76330 | D22: 84530 | F22: Ethanol | G22: =+C22*'Unit conversion calculations'!$D$6*'Unit conversion calculations'!$E$12 -> 5.914119322 | H22: MWh | I22: m3 | J22: =+D22*'Unit conversion calculations'!$D$6*'Unit conversion calculations'!$E$12 -> 6.549462941 | K22: MWh | L22: m3 | M22: =+B22*'Unit conversion calculations'!$E$12 -> 789346.0924
A23: Ethyl tertiary butyl ether (ETBE) | B23: 2810 | C23: 96720 | D23: 104530 | F23: Ethyl tertiary butyl ether (ETBE) | G23: =+C23*'Unit conversion calculations'!$D$6*'Unit conversion calculations'!$E$12 -> 7.493955467 | H23: MWh | I23: m3 | J23: =+D23*'Unit conversion calculations'!$D$6*'Unit conversion calculations'!$E$12 -> 8.099081524 | K23: MWh | L23: m3 | M23: =+B23*'Unit conversion calculations'!$E$12 -> 742323.4671
A24: Fischer-Tropsch diesel (FTD) | B24: 3017 | C24: 123670 | D24: 130030 | F24: Fischer-Tropsch diesel (FTD) | G24: =+C24*'Unit conversion calculations'!$D$6*'Unit conversion calculations'!$E$12 -> 9.582066507 | H24: MWh | I24: m3 | J24: =+D24*'Unit conversion calculations'!$D$6*'Unit conversion calculations'!$E$12 -> 10.07484522 | K24: MWh | L24: m3 | M24: =+B24*'Unit conversion calculations'!$E$12 -> 797007.082
A25: Gasoline | B25: 2835.562 | C25: 112193.52 | D25: 120438.62 | F25: Gasoline | G25: =+C25*'Unit conversion calculations'!$D$6*'Unit conversion calculations'!$E$12 -> 8.692858174 | H25: MWh | I25: m3 | J25: =+D25*'Unit conversion calculations'!$D$6*'Unit conversion calculations'!$E$12 -> 9.331696183 | K25: MWh | L25: m3 | M25: =+B25*'Unit conversion calculations'!$E$12 -> 749076.2331
A26: Gasoline blendstock | B26: 2819 | C26: 116090 | D26: 124340 | F26: Gasoline blendstock | G26: =+C26*'Unit conversion calculations'!$D$6*'Unit conversion calculations'!$E$12 -> 8.994761064 | H26: MWh | I26: m3 | J26: =+D26*'Unit conversion calculations'!$D$6*'Unit conversion calculations'!$E$12 -> 9.63397873 | K26: MWh | L26: m3 | M26: =+B26*'Unit conversion calculations'!$E$12 -> 744701.0156
A27: High Octane Fuel (E25) | B27: 2861.25 | C27: 106150 | D27: 114387.5 | F27: High Octane Fuel (E25) | G27: =+C27*'Unit conversion calculations'!$D$6*'Unit conversion calculations'!$E$12 -> 8.224600629 | H27: MWh | I27: m3 | J27: =+D27*'Unit conversion calculations'!$D$6*'Unit conversion calculations'!$E$12 -> 8.862849783 | K27: MWh | L27: m3 | M27: =+B27*'Unit conversion calculations'!$E$12 -> 755862.2848
A28: High Octane Fuel (E40) | B28: 2886.6 | C28: 100186 | D28: 108416 | F28: High Octane Fuel (E40) | G28: =+C28*'Unit conversion calculations'!$D$6*'Unit conversion calculations'!$E$12 -> 7.762504367 | H28: MWh | I28: m3 | J28: =+D28*'Unit conversion calculations'!$D$6*'Unit conversion calculations'!$E$12 -> 8.400172414 | K28: MWh | L28: m3 | M28: =+B28*'Unit conversion calculations'!$E$12 -> 762559.0463
A29: Isobutane | B29: 2118 | C29: 90060 | D29: 98560 | F29: Isobutane | G29: =+C29*'Unit conversion calculations'!$D$6*'Unit conversion calculations'!$E$12 -> 6.977932479 | H29: MWh | I29: m3 | J29: =+D29*'Unit conversion calculations'!$D$6*'Unit conversion calculations'!$E$12 -> 7.636520377 | K29: MWh | L29: m3 | M29: =+B29*'Unit conversion calculations'!$E$12 -> 559516.4069
A30: Isobutylene | B30: 2253 | C30: 95720 | D30: 103010 | F30: Isobutylene | G30: =+C30*'Unit conversion calculations'!$D$6*'Unit conversion calculations'!$E$12 -> 7.416474538 | H30: MWh | I30: m3 | J30: =+D30*'Unit conversion calculations'!$D$6*'Unit conversion calculations'!$E$12 -> 7.981310511 | K30: MWh | L30: m3 | M30: =+B30*'Unit conversion calculations'!$E$12 -> 595179.634
A31: Liquefied natural gas (LNG) | B31: 1621 | C31: 74720 | D31: 84820 | F31: Liquefied natural gas (LNG) | G31: =+C31*'Unit conversion calculations'!$D$6*'Unit conversion calculations'!$E$12 -> 5.789375026 | H31: MWh | I31: m3 | J31: =+D31*'Unit conversion calculations'!$D$6*'Unit conversion calculations'!$E$12 -> 6.57193241 | K31: MWh | L31: m3 | M31: =+B31*'Unit conversion calculations'!$E$12 -> 428222.8969
A32: Liquefied petroleum gas (LPG) | B32: 1923 | C32: 84950 | D32: 91410 | F32: Liquefied petroleum gas (LPG) | G32: =+C32*'Unit conversion calculations'!$D$6*'Unit conversion calculations'!$E$12 -> 6.582004931 | H32: MWh | I32: m3 | J32: =+D32*'Unit conversion calculations'!$D$6*'Unit conversion calculations'!$E$12 -> 7.082531733 | K32: MWh | L32: m3 | M32: =+B32*'Unit conversion calculations'!$E$12 -> 508002.8567
A33: Liquid hydrogen | B33: 268 | C33: 30500 | D33: 36020 | F33: Liquid hydrogen | G33: =+C33*'Unit conversion calculations'!$D$6*'Unit conversion calculations'!$E$12 -> 2.363168339 | H33: MWh | I33: m3 | J33: =+D33*'Unit conversion calculations'!$D$6*'Unit conversion calculations'!$E$12 -> 2.790863068 | K33: MWh | L33: m3 | M33: =+B33*'Unit conversion calculations'!$E$12 -> 70798.11003
A34: Low-sulfur diesel | B34: 3206 | C34: 129487.8476 | D34: 138490 | F34: Low-sulfur diesel | G34: =+C34*'Unit conversion calculations'!$D$6*'Unit conversion calculations'!$E$12 -> 10.03283874 | H34: MWh | I34: m3 | J34: =+D34*'Unit conversion calculations'!$D$6*'Unit conversion calculations'!$E$12 -> 10.73033388 | K34: MWh | L34: m3 | M34: =+B34*'Unit conversion calculations'!$E$12 -> 846935.5999
A35: Methanol | B35: 3006 | C35: 57250 | D35: 65200 | F35: Methanol | G35: =+C35*'Unit conversion calculations'!$D$6*'Unit conversion calculations'!$E$12 -> 4.435783194 | H35: MWh | I35: m3 | J35: =+D35*'Unit conversion calculations'!$D$6*'Unit conversion calculations'!$E$12 -> 5.05175658 | K35: MWh | L35: m3 | M35: =+B35*'Unit conversion calculations'!$E$12 -> 794101.1894
A36: Methyl ester (biodiesel, BD) | B36: 3361 | C36: 119550 | D36: 127960 | F36: Methyl ester (biodiesel, BD) | G36: =+C36*'Unit conversion calculations'!$D$6*'Unit conversion calculations'!$E$12 -> 9.262845079 | H36: MWh | I36: m3 | J36: =+D36*'Unit conversion calculations'!$D$6*'Unit conversion calculations'!$E$12 -> 9.914459693 | K36: MWh | L36: m3 | M36: =+B36*'Unit conversion calculations'!$E$12 -> 887882.268
A37: Methyl tertiary butyl ether (MTBE) | B37: 2811 | C37: 93540 | D37: 101130 | F37: Methyl tertiary butyl ether (MTBE) | G37: =+C37*'Unit conversion calculations'!$D$6*'Unit conversion calculations'!$E$12 -> 7.247566112 | H37: MWh | I37: m3 | J37: =+D37*'Unit conversion calculations'!$D$6*'Unit conversion calculations'!$E$12 -> 7.835646364 | K37: MWh | L37: m3 | M37: =+B37*'Unit conversion calculations'!$E$12 -> 742587.6392
A38: Natural gas liquids | B38: 2532 | C38: 83686.11202 | D38: 90050 | F38: Natural gas liquids | G38: =+C38*'Unit conversion calculations'!$D$6*'Unit conversion calculations'!$E$12 -> 6.484077716 | H38: MWh | I38: m3 | J38: =+D38*'Unit conversion calculations'!$D$6*'Unit conversion calculations'!$E$12 -> 6.97715767 | K38: MWh | L38: m3 | M38: =+B38*'Unit conversion calculations'!$E$12 -> 668883.6366
A39: NG-based FT naphtha | B39: 2651 | C39: 111520 | D39: 119740 | F39: =A39 -> NG-based FT naphtha | G39: =+C39*'Unit conversion calculations'!$D$6*'Unit conversion calculations'!$E$12 -> 8.640673218 | H39: MWh | I39: m3 | J39: =+D39*'Unit conversion calculations'!$D$6*'Unit conversion calculations'!$E$12 -> 9.277566456 | K39: MWh | L39: m3 | M39: =+B39*'Unit conversion calculations'!$E$12 -> 700320.1108
A40: n-Hexane | B40: 2478.7 | C40: 105124.8 | D40: 112166.3 | F40: n-Hexane | G40: =+C40*'Unit conversion calculations'!$D$6*'Unit conversion calculations'!$E$12 -> 8.14516718 | H40: MWh | I40: m3 | J40: =+D40*'Unit conversion calculations'!$D$6*'Unit conversion calculations'!$E$12 -> 8.690749143 | K40: MWh | L40: m3 | M40: =+B40*'Unit conversion calculations'!$E$12 -> 654803.2662
A41: Petroleum naphtha | B41: 2745 | C41: 116920 | D41: 125080 | F41: Petroleum naphtha | G41: =+C41*'Unit conversion calculations'!$D$6*'Unit conversion calculations'!$E$12 -> 9.059070236 | H41: MWh | I41: m3 | J41: =+D41*'Unit conversion calculations'!$D$6*'Unit conversion calculations'!$E$12 -> 9.691314618 | K41: MWh | L41: m3 | M41: =+B41*'Unit conversion calculations'!$E$12 -> 725152.2837
A42: Propane | B42: 1920 | C42: 84250 | D42: 91420 | F42: Propane | G42: =+C42*'Unit conversion calculations'!$D$6*'Unit conversion calculations'!$E$12 -> 6.52776828 | H42: MWh | I42: m3 | J42: =+D42*'Unit conversion calculations'!$D$6*'Unit conversion calculations'!$E$12 -> 7.083306542 | K42: MWh | L42: m3 | M42: =+B42*'Unit conversion calculations'!$E$12 -> 507210.3405
A43: Renewable Diesel I (SuperCetane) | B43: 2835 | C43: 117059 | D43: 125293.7653 | F43: Renewable Diesel I (SuperCetane) | G43: =+C43*'Unit conversion calculations'!$D$6*'Unit conversion calculations'!$E$12 -> 9.069840085 | H43: MWh | I43: m3 | J43: =+D43*'Unit conversion calculations'!$D$6*'Unit conversion calculations'!$E$12 -> 9.707877351 | K43: MWh | L43: m3 | M43: =+B43*'Unit conversion calculations'!$E$12 -> 748927.7684
A44: Renewable Diesel II (UOP-HDO) | B44: 2948 | C44: 122887 | D44: 130817 | F44: Renewable Diesel II (UOP-HDO) | G44: =+C44*'Unit conversion calculations'!$D$6*'Unit conversion calculations'!$E$12 -> 9.52139894 | H44: MWh | I44: m3 | J44: =+D44*'Unit conversion calculations'!$D$6*'Unit conversion calculations'!$E$12 -> 10.13582271 | K44: MWh | L44: m3 | M44: =+B44*'Unit conversion calculations'!$E$12 -> 778779.2104
A45: Renewable Diesel III (PNNL-HTL) | B45: 3003.263948 | C45: 123542.4264 | D45: 133070.137 | F45: Renewable Diesel III (PNNL-HTL) | G45: =+C45*'Unit conversion calculations'!$D$6*'Unit conversion calculations'!$E$12 -> 9.57218199 | H45: MWh | I45: m3 | J45: =+D45*'Unit conversion calculations'!$D$6*'Unit conversion calculations'!$E$12 -> 10.31039786 | K45: MWh | L45: m3 | M45: =+B45*'Unit conversion calculations'!$E$12 -> 793378.4009
A46: Renewable Gasoline | B46: 2830 | C46: 115983 | D46: 124230 | F46: Renewable Gasoline | G46: =+C46*'Unit conversion calculations'!$D$6*'Unit conversion calculations'!$E$12 -> 8.986470605 | H46: MWh | I46: m3 | J46: =+D46*'Unit conversion calculations'!$D$6*'Unit conversion calculations'!$E$12 -> 9.625455828 | K46: MWh | L46: m3 | M46: =+B46*'Unit conversion calculations'!$E$12 -> 747606.9082
A47: Renewable Gasoline (IDL) | B47: 2654.648205 | C47: 111560 | D47: 119492.5015 | F47: Renewable Gasoline (IDL) | G47: =+C47*'Unit conversion calculations'!$D$6*'Unit conversion calculations'!$E$12 -> 8.643772455 | H47: MWh | I47: m3 | J47: =+D47*'Unit conversion calculations'!$D$6*'Unit conversion calculations'!$E$12 -> 9.258390041 | K47: MWh | L47: m3 | M47: =+B47*'Unit conversion calculations'!$E$12 -> 701283.8646
A48: Residual oil (HFO) | B48: 3752 | C48: 140352.5222 | D48: 150110 | F48: Residual oil (HFO) | G48: =+C48*'Unit conversion calculations'!$D$6*'Unit conversion calculations'!$E$12 -> 10.87464383 | H48: MWh | I48: m3 | J48: =+D48*'Unit conversion calculations'!$D$6*'Unit conversion calculations'!$E$12 -> 11.63066227 | K48: MWh | L48: m3 | M48: =+B48*'Unit conversion calculations'!$E$12 -> 991173.5404
A49: Shale Oil (Bakken) | B49: 3087.237213 | C49: 125600.9073 | D49: 134008.5257 | F49: Shale Oil (Bakken) | G49: =+C49*'Unit conversion calculations'!$D$6*'Unit conversion calculations'!$E$12 -> 9.731675002 | H49: MWh | I49: m3 | J49: =+D49*'Unit conversion calculations'!$D$6*'Unit conversion calculations'!$E$12 -> 10.38310509 | K49: MWh | L49: m3 | M49: =+B49*'Unit conversion calculations'!$E$12 -> 815561.7907
A50: Shale Oil (Eagle Ford) | B50: 2984.042655 | C50: 122492.6089 | D50: 130692.1604 | F50: Shale Oil (Eagle Ford) | G50: =+C50*'Unit conversion calculations'!$D$6*'Unit conversion calculations'!$E$12 -> 9.49084115 | H50: MWh | I50: m3 | J50: =+D50*'Unit conversion calculations'!$D$6*'Unit conversion calculations'!$E$12 -> 10.12615002 | K50: MWh | L50: m3 | M50: =+B50*'Unit conversion calculations'!$E$12 -> 788300.6724
A51: SPK (FT Jet Fuel/HRJ) | B51: 2865.556127 | C51: 119776.6215 | D51: 128103.3334 | F51: SPK (FT Jet Fuel/HRJ) | G51: =+C51*'Unit conversion calculations'!$D$6*'Unit conversion calculations'!$E$12 -> 9.280403923 | H51: MWh | I51: m3 | J51: =+D51*'Unit conversion calculations'!$D$6*'Unit conversion calculations'!$E$12 -> 9.925565295 | K51: MWh | L51: m3 | M51: =+B51*'Unit conversion calculations'!$E$12 -> 756999.8432
A52: Synthetic crude oil (SCO) | B52: 3266 | C52: 135084.9129 | D52: 144475.8427 | F52: Synthetic crude oil (SCO) | G52: =+C52*'Unit conversion calculations'!$D$6*'Unit conversion calculations'!$E$12 -> 10.46650457 | H52: MWh | I52: m3 | J52: =+D52*'Unit conversion calculations'!$D$6*'Unit conversion calculations'!$E$12 -> 11.19412253 | K52: MWh | L52: m3 | M52: =+B52*'Unit conversion calculations'!$E$12 -> 862785.923
A53: Tertiary amyl methyl ether (TAME) | B53: 2913 | C53: 100480 | D53: 108570 | F53: Tertiary amyl methyl ether (TAME) | G53: =+C53*'Unit conversion calculations'!$D$6*'Unit conversion calculations'!$E$12 -> 7.785283761 | H53: MWh | I53: m3 | J53: =+D53*'Unit conversion calculations'!$D$6*'Unit conversion calculations'!$E$12 -> 8.412104477 | K53: MWh | L53: m3 | M53: =+B53*'Unit conversion calculations'!$E$12 -> 769533.1885
A54: U.S. conventional diesel | B54: 3167 | C54: 128450 | D54: 137380 | F54: U.S. conventional diesel | G54: =+C54*'Unit conversion calculations'!$D$6*'Unit conversion calculations'!$E$12 -> 9.952425349 | H54: MWh | I54: m3 | J54: =+D54*'Unit conversion calculations'!$D$6*'Unit conversion calculations'!$E$12 -> 10.64433005 | K54: MWh | L54: m3 | M54: =+B54*'Unit conversion calculations'!$E$12 -> 836632.8898
A55: ULS Jet Fuel | B55: 2998.045512 | C55: 123041.2311 | D55: 131594.8943 | F55: ULS Jet Fuel | G55: =+C55*'Unit conversion calculations'!$D$6*'Unit conversion calculations'!$E$12 -> 9.533348909 | H55: MWh | I55: m3 | J55: =+D55*'Unit conversion calculations'!$D$6*'Unit conversion calculations'!$E$12 -> 10.19609468 | K55: MWh | L55: m3 | M55: =+B55*'Unit conversion calculations'!$E$12 -> 791999.836
A56: Gaseous Fuels (at 32F and 1atm): | B56: gr/ft3 | C56: Btu/ft3 | D56: Btu/ft3 | F56: =A56 -> Gaseous Fuels (at 32F and 1atm): | G56: MWh/m3 | J56: MWh/m3
A57: Gaseous hydrogen | B57: 2.55 | C57: 290 | D57: 343 | F57: =A57 -> Gaseous hydrogen | G57: =+C57*'Unit conversion calculations'!$D$6*'Unit conversion calculations'!$G$12 -> 0.003003731159 | H57: MWh | I57: m3 | J57: =+D57*'Unit conversion calculations'!$D$6*'Unit conversion calculations'!$G$12 -> 0.003552688923 | K57: MWh | L57: m3 | M57: =+B57*'Unit conversion calculations'!$G$12 -> 90.05240014
A58: Natural gas | B58: 22 | C58: 983 | D58: 1089 | F58: =A58 -> Natural gas | G58: =+C58*'Unit conversion calculations'!$D$6*'Unit conversion calculations'!$G$12 -> 0.01018161286 | H58: MWh | I58: m3 | J58: =+D58*'Unit conversion calculations'!$D$6*'Unit conversion calculations'!$G$12 -> 0.01127952839 | K58: MWh | L58: m3 | M58: =+B58*'Unit conversion calculations'!$G$12 -> 776.9226679
A59: Pure Methane | B59: 20.3031793 | C59: 962.1850492 | D59: 1068.025405 | F59: =A59 -> Pure Methane | G59: =+C59*'Unit conversion calculations'!$D$6*'Unit conversion calculations'!$G$12 -> 0.009966017977 | H59: MWh | I59: m3 | J59: =+D59*'Unit conversion calculations'!$D$6*'Unit conversion calculations'!$G$12 -> 0.01106227995 | K59: MWh | L59: m3 | M59: =+B59*'Unit conversion calculations'!$G$12 -> 717.0000103
A60: Still gas (in refineries) | B60: 20.3 | C60: 982 | D60: 1043.738844 | F60: =A60 -> Still gas (in refineries) | G60: =+C60*'Unit conversion calculations'!$D$6*'Unit conversion calculations'!$G$12 -> 0.01017125517 | H60: MWh | I60: m3 | J60: =+D60*'Unit conversion calculations'!$D$6*'Unit conversion calculations'!$G$12 -> 0.0108107272 | K60: MWh | L60: m3 | M60: =+B60*'Unit conversion calculations'!$G$12 -> 716.8877344
A61: Solid Fuels: | C61: Btu/ton | D61: Btu/ton | F61: Solid Fuels: | G61: MWh/ton | J61: MWh/ton
A62: Bio-char | C62: 18916910.57 | D62: 18916910.57 | F62: =A62 -> Bio-char | G62: =+C62*'Unit conversion calculations'!$D$6 -> 5.548277324 | H62: MWh | I62: Metric Tonne | J62: =+D62*'Unit conversion calculations'!$D$6 -> 5.548277324 | K62: MWh | L62: Metric Tonne
A63: Bituminous coal | C63: 22639319.98 | D63: 23633492.96 | F63: Bituminous coal | G63: =+C63*'Unit conversion calculations'!$D$6 -> 6.640049663 | H63: MWh | I63: Metric Tonne | J63: =+D63*'Unit conversion calculations'!$D$6 -> 6.931637837 | K63: MWh | L63: Metric Tonne
A64: Coal Mix for Electricity Generation | C64: 19474169.22 | D64: 20673610.12 | F64: Coal Mix for Electricity Generation | G64: =+C64*'Unit conversion calculations'!$D$6 -> 5.711719737 | H64: MWh | I64: Metric Tonne | J64: =+D64*'Unit conversion calculations'!$D$6 -> 6.06351242 | K64: MWh | L64: Metric Tonne
A65: Coking coal | C65: 24599421.97 | D65: 25679670 | F65: Coking coal | G65: =+C65*'Unit conversion calculations'!$D$6 -> 7.214942133 | H65: MWh | I65: Metric Tonne | J65: =+D65*'Unit conversion calculations'!$D$6 -> 7.531775879 | K65: MWh | L65: Metric Tonne
A66: Convertible municipal solid waste | C66: 14155275.21 | D66: 16144032.89 | F66: Convertible municipal solid waste | G66: =+C66*'Unit conversion calculations'!$D$6 -> 4.1517029 | H66: MWh | I66: Metric Tonne | J66: =+D66*'Unit conversion calculations'!$D$6 -> 4.735000002 | K66: MWh | L66: Metric Tonne
A67: Corn stover | C67: 14716000 | D67: 15774000 | F67: Corn stover | G67: =+C67*'Unit conversion calculations'!$D$6 -> 4.316161922 | H67: MWh | I67: Metric Tonne | J67: =+D67*'Unit conversion calculations'!$D$6 -> 4.626470383 | K67: MWh | L67: Metric Tonne
A68: Forage sorghum bagasse | C68: 14409931.25 | D68: 15305245.09 | F68: Forage sorghum bagasse | G68: =+C68*'Unit conversion calculations'!$D$6 -> 4.226392808 | H68: MWh | I68: Metric Tonne | J68: =+D68*'Unit conversion calculations'!$D$6 -> 4.488985871 | K68: MWh | L68: Metric Tonne
A69: Forest residue | C69: 17289000 | D69: 17906000 | F69: Forest residue | G69: =+C69*'Unit conversion calculations'!$D$6 -> 5.070815675 | H69: MWh | I69: Metric Tonne | J69: =+D69*'Unit conversion calculations'!$D$6 -> 5.251780061 | K69: MWh | L69: Metric Tonne
A70: Grain sorghum bagasse | C70: 12781599.34 | D70: 14131556.35 | F70: Grain sorghum bagasse | G70: =+C70*'Unit conversion calculations'!$D$6 -> 3.748807583 | H70: MWh | I70: Metric Tonne | J70: =+D70*'Unit conversion calculations'!$D$6 -> 4.144746225 | K70: MWh | L70: Metric Tonne
A71: Lignite coal | C71: 10805182.82 | D71: 12992301.97 | F71: Lignite coal | G71: =+C71*'Unit conversion calculations'!$D$6 -> 3.169130107 | H71: MWh | I71: Metric Tonne | J71: =+D71*'Unit conversion calculations'!$D$6 -> 3.810606079 | K71: MWh | L71: Metric Tonne
A72: Miscanthus | C72: 15342000 | D72: 16377000 | F72: Miscanthus | G72: =+C72*'Unit conversion calculations'!$D$6 -> 4.499765983 | H72: MWh | I72: Metric Tonne | J72: =+D72*'Unit conversion calculations'!$D$6 -> 4.803328608 | K72: MWh | L72: Metric Tonne
A73: Municipal solid waste (defined by EISA) | C73: 11209638.73 | D73: 13583444.58 | F73: Municipal solid waste (defined by EISA) | G73: =+C73*'Unit conversion calculations'!$D$6 -> 3.287755903 | H73: MWh | I73: Metric Tonne | J73: =+D73*'Unit conversion calculations'!$D$6 -> 3.983986565 | K73: MWh | L73: Metric Tonne
A74: Pet Coke | C74: 26949428.73 | D74: 28595925.17 | F74: Pet Coke | G74: =+C74*'Unit conversion calculations'!$D$6 -> 7.904192588 | H74: MWh | I74: Metric Tonne | J74: =+D74*'Unit conversion calculations'!$D$6 -> 8.38710542 | K74: MWh | L74: Metric Tonne
A75: Poplar | C75: 15929000 | D75: 17062000 | F75: Poplar | G75: =+C75*'Unit conversion calculations'!$D$6 -> 4.671931453 | H75: MWh | I75: Metric Tonne | J75: =+D75*'Unit conversion calculations'!$D$6 -> 5.004237206 | K75: MWh | L75: Metric Tonne
A76: Subbituminous coal | C76: 16085444.01 | D76: 17449319.67 | F76: Subbituminous coal | G76: =+C76*'Unit conversion calculations'!$D$6 -> 4.717816046 | H76: MWh | I76: Metric Tonne | J76: =+D76*'Unit conversion calculations'!$D$6 -> 5.117836989 | K76: MWh | L76: Metric Tonne
A77: Sugarcane bagasse | C77: 12381771.31 | D77: 14062678 | F77: Sugarcane bagasse | G77: =+C77*'Unit conversion calculations'!$D$6 -> 3.631539132 | H77: MWh | I77: Metric Tonne | J77: =+D77*'Unit conversion calculations'!$D$6 -> 4.124544394 | K77: MWh | L77: Metric Tonne
A78: Sugarcane straw | C78: 13454048.89 | D78: 15774000 | F78: Sugarcane straw | G78: =+C78*'Unit conversion calculations'!$D$6 -> 3.946035168 | H78: MWh | I78: Metric Tonne | J78: =+D78*'Unit conversion calculations'!$D$6 -> 4.626470383 | K78: MWh | L78: Metric Tonne
A79: Sweet sorghum bagasse | C79: 14409931.25 | D79: 15305245.09 | F79: Sweet sorghum bagasse | G79: =+C79*'Unit conversion calculations'!$D$6 -> 4.226392808 | H79: MWh | I79: Metric Tonne | J79: =+D79*'Unit conversion calculations'!$D$6 -> 4.488985871 | K79: MWh | L79: Metric Tonne
A80: Switchgrass | C80: 14447000 | D80: 15583000 | F80: Switchgrass | G80: =+C80*'Unit conversion calculations'!$D$6 -> 4.237264969 | H80: MWh | I80: Metric Tonne | J80: =+D80*'Unit conversion calculations'!$D$6 -> 4.570450614 | K80: MWh | L80: Metric Tonne
A81: Synthetic coal | C81: 22639319.98 | D81: 23633492.96 | F81: Synthetic coal | G81: =+C81*'Unit conversion calculations'!$D$6 -> 6.640049663 | H81: MWh | I81: Metric Tonne | J81: =+D81*'Unit conversion calculations'!$D$6 -> 6.931637837 | K81: MWh | L81: Metric Tonne
A82: Tire Derived Fuel | C82: 26664354.3 | D82: 28293433.89 | F82: Tire Derived Fuel | G82: =+C82*'Unit conversion calculations'!$D$6 -> 7.820581047 | H82: MWh | I82: Metric Tonne | J82: =+D82*'Unit conversion calculations'!$D$6 -> 8.298385566 | K82: MWh | L82: Metric Tonne
A83: Waste coal | C83: 9945646.34 | D83: 11958783.36 | F83: Waste coal | G83: =+C83*'Unit conversion calculations'!$D$6 -> 2.917030445 | H83: MWh | I83: Metric Tonne | J83: =+D83*'Unit conversion calculations'!$D$6 -> 3.507477941 | K83: MWh | L83: Metric Tonne
A84: Willow | C84: 15396000 | D84: 16524000 | F84: Willow | G84: =+C84*'Unit conversion calculations'!$D$6 -> 4.515604033 | H84: MWh | I84: Metric Tonne | J84: =+D84*'Unit conversion calculations'!$D$6 -> 4.8464433 | K84: MWh | L84: Metric Tonne
A85: Yard trimming waste | C85: 15000000 | F85: Yard trimming waste | G85: =+C85*'Unit conversion calculations'!$D$6 -> 4.399458333 | H85: MWh | I85: Metric Tonne | J85: =+D85*'Unit conversion calculations'!$D$6 -> 0 | K85: MWh | L85: Metric Tonne

Sheet Unit conversion calculations
A1: UNIT CONVERSION DATA
C2: Equals:
A3: ENERGY | C3: kWh | D3: MWh | E3: Btu | F3: MMBtu | G3: MJ | H3: kCal
A4: 1 unit of: | B4: kWh | C4: 1 | D4: 0.001 | E4: 3409.510641 | F4: 0.003409510641 | G4: 3.6 | H4: 859.8452279
B5: MWh | C5: 1000 | D5: 1 | E5: 3409510.641 | F5: 3.409510641 | G5: 3600 | H5: 859845.2279
B6: Btu | C6: 0.0002932972222 | D6: 2.932972222e-07 | E6: 1 | F6: 1e-06 | G6: 0.00105587 | H6: 0.2521902169
B7: MMBtu | C7: 293.2972222 | D7: 0.2932972222 | E7: 1000000 | F7: 1 | G7: 1055.87 | H7: 252190.2169
B8: MJ | C8: 0.2777777778 | D8: 0.0002777777778 | E8: 947.086289 | F8: 0.000947086289 | G8: 1 | H8: 238.8458966
B9: kCal | C9: 0.001163 | D9: 1.163e-06 | E9: 3.965260875 | F9: 3.965260875e-06 | G9: 0.0041868 | H9: 1
A10: VOLUME | C10: Equals:
C11: m3 | D11: Litre | E11: US Gallon | F11: Imperial Gallon | G11: ft3 | H11: bbl (oil)
A12: 1 unit of: | B12: m3 | C12: 1 | D12: 1000 | E12: 264.1720524 | F12: 219.9692483 | G12: 35.31466672 | H12: =TRANSPOSE(1/C17:G17) -> 6.28981057
B13: Litre | C13: 0.001 | D13: 1 | E13: 0.2641720524 | F13: 0.2199692483 | G13: 0.03531466672 | H13: 0.00628981057
B14: US Gallon | C14: 0.003785411784 | D14: 3.785411784 | E14: 1 | F14: 0.8326741846 | G14: 0.1336805556 | H14: 0.02380952305
B15: Imperial Gallon | C15: 0.00454609 | D15: 4.54609 | E15: 1.200949926 | F15: 1 | G15: 0.1605436532 | H15: 0.02859404493
B16: ft3 | C16: 0.02831684659 | D16: 28.31684659 | E16: 7.480519481 | F16: 6.228835459 | G16: 1 | H16: 0.178107601
B17: bbl (oil) | C17: 0.1589873 | D17: =+$C$17*D12 -> 158.9873 | E17: =+$C$17*E12 -> 42.00000134 | F17: 34.97231687 | G17: 5.614583512 | H17: 1
C18: Equals:
A19: MASS | C19: gram | D19: kg | E19: Metric Tonne
A20: 1 unit of: | B20: gram | C20: 1 | D20: 0.001 | E20: 1e-06
B21: kg | C21: 1000 | D21: 1 | E21: 0.001
B22: Metric Tonne | C22: 1000000 | D22: 1000 | E22: 1
A24: Merged: | C24: kWh | D24: MWh | E24: Btu | F24: MMBtu | G24: MJ | H24: kCal | I24: m3 | J24: Litre | K24: US Gallon | L24: Imperial Gallon | M24: ft3 | N24: bbl (oil) | O24: gram | P24: kg | Q24: Metric Tonne
B25: kWh | C25: =+C4 -> 1 | D25: =+D4 -> 0.001 | E25: =+E4 -> 3409.510641 | F25: 0.003409510641 | G25: 3.6 | H25: 859.8452279
B26: MWh | C26: 1000 | D26: =+D5 -> 1 | E26: 3409510.641 | F26: 3.409510641 | G26: 3600 | H26: 859845.2279
B27: Btu | C27: 0.0002932972222 | D27: =+D6 -> 2.932972222e-07 | E27: 1 | F27: 1e-06 | G27: 0.00105587 | H27: 0.2521902169
B28: MMBtu | C28: 293.2972222 | D28: =+D7 -> 0.2932972222 | E28: 1000000 | F28: 1 | G28: 1055.87 | H28: 252190.2169
B29: MJ | C29: 0.2777777778 | D29: =+D8 -> 0.0002777777778 | E29: 947.086289 | F29: 0.000947086289 | G29: 1 | H29: 238.8458966
B30: kCal | C30: 0.001163 | D30: =+D9 -> 1.163e-06 | E30: 3.965260875 | F30: 3.965260875e-06 | G30: 0.0041868 | H30: 1
B31: m3 | I31: =+C12 -> 1 | J31: =+D12 -> 1000 | K31: 264.1720524 | L31: 219.9692483 | M31: 35.31466672 | N31: 6.28981057
B32: Litre | I32: 0.001 | J32: 1 | K32: =+E13 -> 0.2641720524 | L32: 0.2199692483 | M32: 0.03531466672 | N32: 0.00628981057
B33: US Gallon | I33: 0.003785411784 | J33: 3.785411784 | K33: 1 | L33: 0.8326741846 | M33: 0.1336805556 | N33: 0.02380952305
B34: Imperial Gallon | I34: =+C15 -> 0.00454609 | J34: 4.54609 | K34: 1.200949926 | L34: 1 | M34: 0.1605436532 | N34: 0.02859404493
B35: ft3 | I35: 0.02831684659 | J35: 28.31684659 | K35: 7.480519481 | L35: 6.228835459 | M35: 1 | N35: 0.178107601
B36: bbl (oil) | I36: 0.1589873 | J36: 158.9873 | K36: 42.00000134 | L36: 34.97231687 | M36: 5.614583512 | N36: 1
B37: gram | O37: =+C20 -> 1 | P37: 0.001 | Q37: 1e-06
B38: kg | O38: 1000 | P38: 1 | Q38: 0.001
B39: Metric Tonne | O39: 1000000 | P39: 1000 | Q39: 1
B42: Fuel: | C42: =+'INPUT and OUTPUT'!$D$5 -> Residual oil (HFO)
B43: Density Adjusted rates | C43: kWh | D43: MWh | E43: Btu | F43: MMBtu | G43: MJ | H43: kCal | I43: m3 | J43: Litre | K43: US Gallon | L43: Imperial Gallon | M43: ft3 | N43: bbl (oil) | O43: gram | P43: kg | Q43: Metric Tonne
B44: kWh | C44: =+C25 -> 1 | D44: =+D25 -> 0.001 | E44: 3409.510641 | F44: 0.003409510641 | G44: 3.6 | H44: 859.8452279
B45: MWh | C45: 1000 | D45: 1 | E45: 3409510.641 | F45: 3.409510641 | G45: 3600 | H45: 859845.2279
B46: Btu | C46: 0.0002932972222 | D46: 2.932972222e-07 | E46: 1 | F46: 1e-06 | G46: 0.00105587 | H46: 0.2521902169
B47: MMBtu | C47: 293.2972222 | D47: 0.2932972222 | E47: 1000000 | F47: 1 | G47: 1055.87 | H47: 252190.2169
B48: MJ | C48: 0.2777777778 | D48: 0.0002777777778 | E48: 947.086289 | F48: 0.000947086289 | G48: 1 | H48: 238.8458966
B49: kCal | C49: 0.001163 | D49: 1.163e-06 | E49: 3.965260875 | F49: 3.965260875e-06 | G49: 0.0041868 | H49: 1
B50: m3 | I50: =+I31 -> 1 | J50: 1000 | K50: 264.1720524 | L50: 219.9692483 | M50: 35.31466672 | N50: 6.28981057 | O50: =+TRANSPOSE(1/I56:N58) -> 991173.5404 | P50: 991.1735404 | Q50: 0.9911735404
B51: Litre | I51: 0.001 | J51: 1 | K51: 0.2641720524 | L51: 0.2199692483 | M51: 0.03531466672 | N51: 0.00628981057 | O51: 991.1735404 | P51: 0.9911735404 | Q51: 0.0009911735404
B52: US Gallon | I52: 0.003785411784 | J52: 3.785411784 | K52: 1 | L52: 0.8326741846 | M52: 0.1336805556 | N52: 0.02380952305 | O52: 3752 | P52: 3.752 | Q52: 0.003752
B53: Imperial Gallon | I53: =+I34 -> 0.00454609 | J53: 4.54609 | K53: 1.200949926 | L53: 1 | M53: 0.1605436532 | N53: 0.02859404493 | O53: 4505.96412 | P53: 4.50596412 | Q53: 0.00450596412
B54: ft3 | I54: 0.02831684659 | J54: 28.31684659 | K54: 7.480519481 | L54: 6.228835459 | M54: 1 | N54: 0.178107601 | O54: 28066.90909 | P54: 28.06690909 | Q54: 0.02806690909
B55: bbl (oil) | I55: 0.1589873 | J55: 158.9873 | K55: 42.00000134 | L55: 34.97231687 | M55: 5.614583512 | N55: 1 | O55: 157584.005 | P55: 157.584005 | Q55: 0.157584005
B56: gram | I56: =1/INDEX('Fuel Data - heating values'!$A$5:$M$85,MATCH('INPUT and OUTPUT'!$D$5,'Fuel Data - heating values'!$A$5:$A$85,0),13) -> 1.00890506e-06 | J56: =+$I56*D$12 -> 0.00100890506 | K56: =+$I56*E$12 -> 0.0002665245203 | L56: 0.0002219280876 | M56: 3.562914594e-05 | N56: 6.345821708e-06 | O56: =+O37 -> 1 | P56: 0.001 | Q56: 1e-06
B57: kg | I57: =+I56*C21 -> 0.00100890506 | J57: =+$I57*D$12 -> 1.00890506 | K57: 0.2665245203 | L57: 0.2219280876 | M57: 0.03562914594 | N57: 0.006345821708 | O57: 1000 | P57: 1 | Q57: 0.001
B58: Metric Tonne | I58: =+I56*C22 -> 1.00890506 | J58: 1008.90506 | K58: 266.5245203 | L58: 221.9280876 | M58: 35.62914594 | N58: 6.345821708 | O58: 1000000 | P58: 1000 | Q58: 1
B61: Using: | C61: =+'INPUT and OUTPUT'!$D$7 -> HHV
B62: Aggregate Conversion Factor (taking density and heating value into account) | C62: kWh | D62: MWh | E62: Btu | F62: MMBtu | G62: MJ | H62: kCal | I62: m3 | J62: Litre | K62: US Gallon | L62: Imperial Gallon | M62: ft3 | N62: bbl (oil) | O62: gram | P62: kg | Q62: Metric Tonne
B63: kWh | C63: =+C44 -> 1 | D63: =+D44 -> 0.001 | E63: 3409.510641 | F63: 0.003409510641 | G63: 3.6 | H63: 859.8452279 | I63: =+(1/'INPUT and OUTPUT'!$D$12)*(1/INDEX('Unit conversion calculations'!$B$43:$Q$58,MATCH('INPUT and OUTPUT'!$F$12,'Unit conversion calculations'!$B$43:$B$58,0),MATCH('Unit conversion calculations'!$B63,'Unit conversion calculations'!$B$43:$Q$43,0)))*INDEX('Unit conversion calculations'!$B$43:$Q$58,MATCH('INPUT and OUTPUT'!$F$13,'Unit conversion calculations'!$B$43:$B$58,0),MATCH('Unit conversion calculations'!I$62,'Unit conversion calculations'!$B$43:$Q$43,0)) -> 8.597962665e-05 | J63: =+(1/'INPUT and OUTPUT'!$D$12)*(1/INDEX('Unit conversion calculations'!$B$43:$Q$58,MATCH('INPUT and OUTPUT'!$F$12,'Unit conversion calculations'!$B$43:$B$58,0),MATCH('Unit conversion calculations'!$B63,'Unit conversion calculations'!$B$43:$Q$43,0)))*INDEX('Unit conversion calculations'!$B$43:$Q$58,MATCH('INPUT and OUTPUT'!$F$13,'Unit conversion calculations'!$B$43:$B$58,0),MATCH('Unit conversion calculations'!J$62,'Unit conversion calculations'!$B$43:$Q$43,0)) -> 0.08597962665 | K63: =+(1/'INPUT and OUTPUT'!$D$12)*(1/INDEX('Unit conversion calculations'!$B$43:$Q$58,MATCH('INPUT and OUTPUT'!$F$12,'Unit conversion calculations'!$B$43:$B$58,0),MATCH('Unit conversion calculations'!$B63,'Unit conversion calculations'!$B$43:$Q$43,0)))*INDEX('Unit conversion calculations'!$B$43:$Q$58,MATCH('INPUT and OUTPUT'!$F$13,'Unit conversion calculations'!$B$43:$B$58,0),MATCH('Unit conversion calculations'!K$62,'Unit conversion calculations'!$B$43:$Q$43,0)) -> 0.02271341443 | L63: =+(1/'INPUT and OUTPUT'!$D$12)*(1/INDEX('Unit conversion calculations'!$B$43:$Q$58,MATCH('INPUT and OUTPUT'!$F$12,'Unit conversion calculations'!$B$43:$B$58,0),MATCH('Unit conversion calculations'!$B63,'Unit conversion calculations'!$B$43:$Q$43,0)))*INDEX('Unit conversion calculations'!$B$43:$Q$58,MATCH('INPUT and OUTPUT'!$F$13,'Unit conversion calculations'!$B$43:$B$58,0),MATCH('Unit conversion calculations'!L$62,'Unit conversion calculations'!$B$43:$Q$43,0)) -> 0.01891287384 | M63: =+(1/'INPUT and OUTPUT'!$D$12)*(1/INDEX('Unit conversion calculations'!$B$43:$Q$58,MATCH('INPUT and OUTPUT'!$F$12,'Unit conversion calculations'!$B$43:$B$58,0),MATCH('Unit conversion calculations'!$B63,'Unit conversion calculations'!$B$43:$Q$43,0)))*INDEX('Unit conversion calculations'!$B$43:$Q$58,MATCH('INPUT and OUTPUT'!$F$13,'Unit conversion calculations'!$B$43:$B$58,0),MATCH('Unit conversion calculations'!M$62,'Unit conversion calculations'!$B$43:$Q$43,0)) -> 0.00303634186 | N63: =+(1/'INPUT and OUTPUT'!$D$12)*(1/INDEX('Unit conversion calculations'!$B$43:$Q$58,MATCH('INPUT and OUTPUT'!$F$12,'Unit conversion calculations'!$B$43:$B$58,0),MATCH('Unit conversion calculations'!$B63,'Unit conversion calculations'!$B$43:$Q$43,0)))*INDEX('Unit conversion calculations'!$B$43:$Q$58,MATCH('INPUT and OUTPUT'!$F$13,'Unit conversion calculations'!$B$43:$B$58,0),MATCH('Unit conversion calculations'!N$62,'Unit conversion calculations'!$B$43:$Q$43,0)) -> 0.0005407955645 | O63: =+(1/'INPUT and OUTPUT'!$D$12)*(1/INDEX('Unit conversion calculations'!$B$43:$Q$58,MATCH('INPUT and OUTPUT'!$F$12,'Unit conversion calculations'!$B$43:$B$58,0),MATCH('Unit conversion calculations'!$B63,'Unit conversion calculations'!$B$43:$Q$43,0)))*INDEX('Unit conversion calculations'!$B$43:$Q$58,MATCH('INPUT and OUTPUT'!$F$13,'Unit conversion calculations'!$B$43:$B$58,0),MATCH('Unit conversion calculations'!O$62,'Unit conversion calculations'!$B$43:$Q$43,0)) -> 85.22073095 | P63: =+(1/'INPUT and OUTPUT'!$D$12)*(1/INDEX('Unit conversion calculations'!$B$43:$Q$58,MATCH('INPUT and OUTPUT'!$F$12,'Unit conversion calculations'!$B$43:$B$58,0),MATCH('Unit conversion calculations'!$B63,'Unit conversion calculations'!$B$43:$Q$43,0)))*INDEX('Unit conversion calculations'!$B$43:$Q$58,MATCH('INPUT and OUTPUT'!$F$13,'Unit conversion calculations'!$B$43:$B$58,0),MATCH('Unit conversion calculations'!P$62,'Unit conversion calculations'!$B$43:$Q$43,0)) -> 0.08522073095 | Q63: =+(1/'INPUT and OUTPUT'!$D$12)*(1/INDEX('Unit conversion calculations'!$B$43:$Q$58,MATCH('INPUT and OUTPUT'!$F$12,'Unit conversion calculations'!$B$43:$B$58,0),MATCH('Unit conversion calculations'!$B63,'Unit conversion calculations'!$B$43:$Q$43,0)))*INDEX('Unit conversion calculations'!$B$43:$Q$58,MATCH('INPUT and OUTPUT'!$F$13,'Unit conversion calculations'!$B$43:$B$58,0),MATCH('Unit conversion calculations'!Q$62,'Unit conversion calculations'!$B$43:$Q$43,0)) -> 8.522073095e-05
B64: MWh | C64: =+C45 -> 1000 | D64: 1 | E64: 3409510.641 | F64: 3.409510641 | G64: 3600 | H64: 859845.2279 | I64: =+(1/'INPUT and OUTPUT'!$D$12)*(1/INDEX('Unit conversion calculations'!$B$43:$Q$58,MATCH('INPUT and OUTPUT'!$F$12,'Unit conversion calculations'!$B$43:$B$58,0),MATCH('Unit conversion calculations'!$B64,'Unit conversion calculations'!$B$43:$Q$43,0)))*INDEX('Unit conversion calculations'!$B$43:$Q$58,MATCH('INPUT and OUTPUT'!$F$13,'Unit conversion calculations'!$B$43:$B$58,0),MATCH('Unit conversion calculations'!I$62,'Unit conversion calculations'!$B$43:$Q$43,0)) -> 0.08597962665 | J64: =+(1/'INPUT and OUTPUT'!$D$12)*(1/INDEX('Unit conversion calculations'!$B$43:$Q$58,MATCH('INPUT and OUTPUT'!$F$12,'Unit conversion calculations'!$B$43:$B$58,0),MATCH('Unit conversion calculations'!$B64,'Unit conversion calculations'!$B$43:$Q$43,0)))*INDEX('Unit conversion calculations'!$B$43:$Q$58,MATCH('INPUT and OUTPUT'!$F$13,'Unit conversion calculations'!$B$43:$B$58,0),MATCH('Unit conversion calculations'!J$62,'Unit conversion calculations'!$B$43:$Q$43,0)) -> 85.97962665 | K64: =+(1/'INPUT and OUTPUT'!$D$12)*(1/INDEX('Unit conversion calculations'!$B$43:$Q$58,MATCH('INPUT and OUTPUT'!$F$12,'Unit conversion calculations'!$B$43:$B$58,0),MATCH('Unit conversion calculations'!$B64,'Unit conversion calculations'!$B$43:$Q$43,0)))*INDEX('Unit conversion calculations'!$B$43:$Q$58,MATCH('INPUT and OUTPUT'!$F$13,'Unit conversion calculations'!$B$43:$B$58,0),MATCH('Unit conversion calculations'!K$62,'Unit conversion calculations'!$B$43:$Q$43,0)) -> 22.71341443 | L64: =+(1/'INPUT and OUTPUT'!$D$12)*(1/INDEX('Unit conversion calculations'!$B$43:$Q$58,MATCH('INPUT and OUTPUT'!$F$12,'Unit conversion calculations'!$B$43:$B$58,0),MATCH('Unit conversion calculations'!$B64,'Unit conversion calculations'!$B$43:$Q$43,0)))*INDEX('Unit conversion calculations'!$B$43:$Q$58,MATCH('INPUT and OUTPUT'!$F$13,'Unit conversion calculations'!$B$43:$B$58,0),MATCH('Unit conversion calculations'!L$62,'Unit conversion calculations'!$B$43:$Q$43,0)) -> 18.91287384 | M64: =+(1/'INPUT and OUTPUT'!$D$12)*(1/INDEX('Unit conversion calculations'!$B$43:$Q$58,MATCH('INPUT and OUTPUT'!$F$12,'Unit conversion calculations'!$B$43:$B$58,0),MATCH('Unit conversion calculations'!$B64,'Unit conversion calculations'!$B$43:$Q$43,0)))*INDEX('Unit conversion calculations'!$B$43:$Q$58,MATCH('INPUT and OUTPUT'!$F$13,'Unit conversion calculations'!$B$43:$B$58,0),MATCH('Unit conversion calculations'!M$62,'Unit conversion calculations'!$B$43:$Q$43,0)) -> 3.03634186 | N64: =+(1/'INPUT and OUTPUT'!$D$12)*(1/INDEX('Unit conversion calculations'!$B$43:$Q$58,MATCH('INPUT and OUTPUT'!$F$12,'Unit conversion calculations'!$B$43:$B$58,0),MATCH('Unit conversion calculations'!$B64,'Unit conversion calculations'!$B$43:$Q$43,0)))*INDEX('Unit conversion calculations'!$B$43:$Q$58,MATCH('INPUT and OUTPUT'!$F$13,'Unit conversion calculations'!$B$43:$B$58,0),MATCH('Unit conversion calculations'!N$62,'Unit conversion calculations'!$B$43:$Q$43,0)) -> 0.5407955645 | O64: =+(1/'INPUT and OUTPUT'!$D$12)*(1/INDEX('Unit conversion calculations'!$B$43:$Q$58,MATCH('INPUT and OUTPUT'!$F$12,'Unit conversion calculations'!$B$43:$B$58,0),MATCH('Unit conversion calculations'!$B64,'Unit conversion calculations'!$B$43:$Q$43,0)))*INDEX('Unit conversion calculations'!$B$43:$Q$58,MATCH('INPUT and OUTPUT'!$F$13,'Unit conversion calculations'!$B$43:$B$58,0),MATCH('Unit conversion calculations'!O$62,'Unit conversion calculations'!$B$43:$Q$43,0)) -> 85220.73095 | P64: =+(1/'INPUT and OUTPUT'!$D$12)*(1/INDEX('Unit conversion calculations'!$B$43:$Q$58,MATCH('INPUT and OUTPUT'!$F$12,'Unit conversion calculations'!$B$43:$B$58,0),MATCH('Unit conversion calculations'!$B64,'Unit conversion calculations'!$B$43:$Q$43,0)))*INDEX('Unit conversion calculations'!$B$43:$Q$58,MATCH('INPUT and OUTPUT'!$F$13,'Unit conversion calculations'!$B$43:$B$58,0),MATCH('Unit conversion calculations'!P$62,'Unit conversion calculations'!$B$43:$Q$43,0)) -> 85.22073095 | Q64: =+(1/'INPUT and OUTPUT'!$D$12)*(1/INDEX('Unit conversion calculations'!$B$43:$Q$58,MATCH('INPUT and OUTPUT'!$F$12,'Unit conversion calculations'!$B$43:$B$58,0),MATCH('Unit conversion calculations'!$B64,'Unit conversion calculations'!$B$43:$Q$43,0)))*INDEX('Unit conversion calculations'!$B$43:$Q$58,MATCH('INPUT and OUTPUT'!$F$13,'Unit conversion calculations'!$B$43:$B$58,0),MATCH('Unit conversion calculations'!Q$62,'Unit conversion calculations'!$B$43:$Q$43,0)) -> 0.08522073095
B65: Btu | C65: =+C46 -> 0.0002932972222 | D65: =+D46 -> 2.932972222e-07 | E65: 1 | F65: 1e-06 | G65: 0.00105587 | H65: 0.2521902169 | I65: =+(1/'INPUT and OUTPUT'!$D$12)*(1/INDEX('Unit conversion calculations'!$B$43:$Q$58,MATCH('INPUT and OUTPUT'!$F$12,'Unit conversion calculations'!$B$43:$B$58,0),MATCH('Unit conversion calculations'!$B65,'Unit conversion calculations'!$B$43:$Q$43,0)))*INDEX('Unit conversion calculations'!$B$43:$Q$58,MATCH('INPUT and OUTPUT'!$F$13,'Unit conversion calculations'!$B$43:$B$58,0),MATCH('Unit conversion calculations'!I$62,'Unit conversion calculations'!$B$43:$Q$43,0)) -> 2.521758566e-08 | J65: =+(1/'INPUT and OUTPUT'!$D$12)*(1/INDEX('Unit conversion calculations'!$B$43:$Q$58,MATCH('INPUT and OUTPUT'!$F$12,'Unit conversion calculations'!$B$43:$B$58,0),MATCH('Unit conversion calculations'!$B65,'Unit conversion calculations'!$B$43:$Q$43,0)))*INDEX('Unit conversion calculations'!$B$43:$Q$58,MATCH('INPUT and OUTPUT'!$F$13,'Unit conversion calculations'!$B$43:$B$58,0),MATCH('Unit conversion calculations'!J$62,'Unit conversion calculations'!$B$43:$Q$43,0)) -> 2.521758566e-05 | K65: =+(1/'INPUT and OUTPUT'!$D$12)*(1/INDEX('Unit conversion calculations'!$B$43:$Q$58,MATCH('INPUT and OUTPUT'!$F$12,'Unit conversion calculations'!$B$43:$B$58,0),MATCH('Unit conversion calculations'!$B65,'Unit conversion calculations'!$B$43:$Q$43,0)))*INDEX('Unit conversion calculations'!$B$43:$Q$58,MATCH('INPUT and OUTPUT'!$F$13,'Unit conversion calculations'!$B$43:$B$58,0),MATCH('Unit conversion calculations'!K$62,'Unit conversion calculations'!$B$43:$Q$43,0)) -> 6.66178136e-06 | L65: =+(1/'INPUT and OUTPUT'!$D$12)*(1/INDEX('Unit conversion calculations'!$B$43:$Q$58,MATCH('INPUT and OUTPUT'!$F$12,'Unit conversion calculations'!$B$43:$B$58,0),MATCH('Unit conversion calculations'!$B65,'Unit conversion calculations'!$B$43:$Q$43,0)))*INDEX('Unit conversion calculations'!$B$43:$Q$58,MATCH('INPUT and OUTPUT'!$F$13,'Unit conversion calculations'!$B$43:$B$58,0),MATCH('Unit conversion calculations'!L$62,'Unit conversion calculations'!$B$43:$Q$43,0)) -> 5.547093362e-06 | M65: =+(1/'INPUT and OUTPUT'!$D$12)*(1/INDEX('Unit conversion calculations'!$B$43:$Q$58,MATCH('INPUT and OUTPUT'!$F$12,'Unit conversion calculations'!$B$43:$B$58,0),MATCH('Unit conversion calculations'!$B65,'Unit conversion calculations'!$B$43:$Q$43,0)))*INDEX('Unit conversion calculations'!$B$43:$Q$58,MATCH('INPUT and OUTPUT'!$F$13,'Unit conversion calculations'!$B$43:$B$58,0),MATCH('Unit conversion calculations'!M$62,'Unit conversion calculations'!$B$43:$Q$43,0)) -> 8.905506332e-07 | N65: =+(1/'INPUT and OUTPUT'!$D$12)*(1/INDEX('Unit conversion calculations'!$B$43:$Q$58,MATCH('INPUT and OUTPUT'!$F$12,'Unit conversion calculations'!$B$43:$B$58,0),MATCH('Unit conversion calculations'!$B65,'Unit conversion calculations'!$B$43:$Q$43,0)))*INDEX('Unit conversion calculations'!$B$43:$Q$58,MATCH('INPUT and OUTPUT'!$F$13,'Unit conversion calculations'!$B$43:$B$58,0),MATCH('Unit conversion calculations'!N$62,'Unit conversion calculations'!$B$43:$Q$43,0)) -> 1.586138369e-07 | O65: =+(1/'INPUT and OUTPUT'!$D$12)*(1/INDEX('Unit conversion calculations'!$B$43:$Q$58,MATCH('INPUT and OUTPUT'!$F$12,'Unit conversion calculations'!$B$43:$B$58,0),MATCH('Unit conversion calculations'!$B65,'Unit conversion calculations'!$B$43:$Q$43,0)))*INDEX('Unit conversion calculations'!$B$43:$Q$58,MATCH('INPUT and OUTPUT'!$F$13,'Unit conversion calculations'!$B$43:$B$58,0),MATCH('Unit conversion calculations'!O$62,'Unit conversion calculations'!$B$43:$Q$43,0)) -> 0.02499500366 | P65: =+(1/'INPUT and OUTPUT'!$D$12)*(1/INDEX('Unit conversion calculations'!$B$43:$Q$58,MATCH('INPUT and OUTPUT'!$F$12,'Unit conversion calculations'!$B$43:$B$58,0),MATCH('Unit conversion calculations'!$B65,'Unit conversion calculations'!$B$43:$Q$43,0)))*INDEX('Unit conversion calculations'!$B$43:$Q$58,MATCH('INPUT and OUTPUT'!$F$13,'Unit conversion calculations'!$B$43:$B$58,0),MATCH('Unit conversion calculations'!P$62,'Unit conversion calculations'!$B$43:$Q$43,0)) -> 2.499500366e-05 | Q65: =+(1/'INPUT and OUTPUT'!$D$12)*(1/INDEX('Unit conversion calculations'!$B$43:$Q$58,MATCH('INPUT and OUTPUT'!$F$12,'Unit conversion calculations'!$B$43:$B$58,0),MATCH('Unit conversion calculations'!$B65,'Unit conversion calculations'!$B$43:$Q$43,0)))*INDEX('Unit conversion calculations'!$B$43:$Q$58,MATCH('INPUT and OUTPUT'!$F$13,'Unit conversion calculations'!$B$43:$B$58,0),MATCH('Unit conversion calculations'!Q$62,'Unit conversion calculations'!$B$43:$Q$43,0)) -> 2.499500366e-08
B66: MMBtu | C66: =+C47 -> 293.2972222 | D66: 0.2932972222 | E66: 1000000 | F66: 1 | G66: 1055.87 | H66: 252190.2169 | I66: =+(1/'INPUT and OUTPUT'!$D$12)*(1/INDEX('Unit conversion calculations'!$B$43:$Q$58,MATCH('INPUT and OUTPUT'!$F$12,'Unit conversion calculations'!$B$43:$B$58,0),MATCH('Unit conversion calculations'!$B66,'Unit conversion calculations'!$B$43:$Q$43,0)))*INDEX('Unit conversion calculations'!$B$43:$Q$58,MATCH('INPUT and OUTPUT'!$F$13,'Unit conversion calculations'!$B$43:$B$58,0),MATCH('Unit conversion calculations'!I$62,'Unit conversion calculations'!$B$43:$Q$43,0)) -> 0.02521758566 | J66: =+(1/'INPUT and OUTPUT'!$D$12)*(1/INDEX('Unit conversion calculations'!$B$43:$Q$58,MATCH('INPUT and OUTPUT'!$F$12,'Unit conversion calculations'!$B$43:$B$58,0),MATCH('Unit conversion calculations'!$B66,'Unit conversion calculations'!$B$43:$Q$43,0)))*INDEX('Unit conversion calculations'!$B$43:$Q$58,MATCH('INPUT and OUTPUT'!$F$13,'Unit conversion calculations'!$B$43:$B$58,0),MATCH('Unit conversion calculations'!J$62,'Unit conversion calculations'!$B$43:$Q$43,0)) -> 25.21758566 | K66: =+(1/'INPUT and OUTPUT'!$D$12)*(1/INDEX('Unit conversion calculations'!$B$43:$Q$58,MATCH('INPUT and OUTPUT'!$F$12,'Unit conversion calculations'!$B$43:$B$58,0),MATCH('Unit conversion calculations'!$B66,'Unit conversion calculations'!$B$43:$Q$43,0)))*INDEX('Unit conversion calculations'!$B$43:$Q$58,MATCH('INPUT and OUTPUT'!$F$13,'Unit conversion calculations'!$B$43:$B$58,0),MATCH('Unit conversion calculations'!K$62,'Unit conversion calculations'!$B$43:$Q$43,0)) -> 6.66178136 | L66: =+(1/'INPUT and OUTPUT'!$D$12)*(1/INDEX('Unit conversion calculations'!$B$43:$Q$58,MATCH('INPUT and OUTPUT'!$F$12,'Unit conversion calculations'!$B$43:$B$58,0),MATCH('Unit conversion calculations'!$B66,'Unit conversion calculations'!$B$43:$Q$43,0)))*INDEX('Unit conversion calculations'!$B$43:$Q$58,MATCH('INPUT and OUTPUT'!$F$13,'Unit conversion calculations'!$B$43:$B$58,0),MATCH('Unit conversion calculations'!L$62,'Unit conversion calculations'!$B$43:$Q$43,0)) -> 5.547093362 | M66: =+(1/'INPUT and OUTPUT'!$D$12)*(1/INDEX('Unit conversion calculations'!$B$43:$Q$58,MATCH('INPUT and OUTPUT'!$F$12,'Unit conversion calculations'!$B$43:$B$58,0),MATCH('Unit conversion calculations'!$B66,'Unit conversion calculations'!$B$43:$Q$43,0)))*INDEX('Unit conversion calculations'!$B$43:$Q$58,MATCH('INPUT and OUTPUT'!$F$13,'Unit conversion calculations'!$B$43:$B$58,0),MATCH('Unit conversion calculations'!M$62,'Unit conversion calculations'!$B$43:$Q$43,0)) -> 0.8905506332 | N66: =+(1/'INPUT and OUTPUT'!$D$12)*(1/INDEX('Unit conversion calculations'!$B$43:$Q$58,MATCH('INPUT and OUTPUT'!$F$12,'Unit conversion calculations'!$B$43:$B$58,0),MATCH('Unit conversion calculations'!$B66,'Unit conversion calculations'!$B$43:$Q$43,0)))*INDEX('Unit conversion calculations'!$B$43:$Q$58,MATCH('INPUT and OUTPUT'!$F$13,'Unit conversion calculations'!$B$43:$B$58,0),MATCH('Unit conversion calculations'!N$62,'Unit conversion calculations'!$B$43:$Q$43,0)) -> 0.1586138369 | O66: =+(1/'INPUT and OUTPUT'!$D$12)*(1/INDEX('Unit conversion calculations'!$B$43:$Q$58,MATCH('INPUT and OUTPUT'!$F$12,'Unit conversion calculations'!$B$43:$B$58,0),MATCH('Unit conversion calculations'!$B66,'Unit conversion calculations'!$B$43:$Q$43,0)))*INDEX('Unit conversion calculations'!$B$43:$Q$58,MATCH('INPUT and OUTPUT'!$F$13,'Unit conversion calculations'!$B$43:$B$58,0),MATCH('Unit conversion calculations'!O$62,'Unit conversion calculations'!$B$43:$Q$43,0)) -> 24995.00366 | P66: =+(1/'INPUT and OUTPUT'!$D$12)*(1/INDEX('Unit conversion calculations'!$B$43:$Q$58,MATCH('INPUT and OUTPUT'!$F$12,'Unit conversion calculations'!$B$43:$B$58,0),MATCH('Unit conversion calculations'!$B66,'Unit conversion calculations'!$B$43:$Q$43,0)))*INDEX('Unit conversion calculations'!$B$43:$Q$58,MATCH('INPUT and OUTPUT'!$F$13,'Unit conversion calculations'!$B$43:$B$58,0),MATCH('Unit conversion calculations'!P$62,'Unit conversion calculations'!$B$43:$Q$43,0)) -> 24.99500366 | Q66: =+(1/'INPUT and OUTPUT'!$D$12)*(1/INDEX('Unit conversion calculations'!$B$43:$Q$58,MATCH('INPUT and OUTPUT'!$F$12,'Unit conversion calculations'!$B$43:$B$58,0),MATCH('Unit conversion calculations'!$B66,'Unit conversion calculations'!$B$43:$Q$43,0)))*INDEX('Unit conversion calculations'!$B$43:$Q$58,MATCH('INPUT and OUTPUT'!$F$13,'Unit conversion calculations'!$B$43:$B$58,0),MATCH('Unit conversion calculations'!Q$62,'Unit conversion calculations'!$B$43:$Q$43,0)) -> 0.02499500366
B67: MJ | C67: =+C48 -> 0.2777777778 | D67: 0.0002777777778 | E67: 947.086289 | F67: 0.000947086289 | G67: 1 | H67: 238.8458966 | I67: =+(1/'INPUT and OUTPUT'!$D$12)*(1/INDEX('Unit conversion calculations'!$B$43:$Q$58,MATCH('INPUT and OUTPUT'!$F$12,'Unit conversion calculations'!$B$43:$B$58,0),MATCH('Unit conversion calculations'!$B67,'Unit conversion calculations'!$B$43:$Q$43,0)))*INDEX('Unit conversion calculations'!$B$43:$Q$58,MATCH('INPUT and OUTPUT'!$F$13,'Unit conversion calculations'!$B$43:$B$58,0),MATCH('Unit conversion calculations'!I$62,'Unit conversion calculations'!$B$43:$Q$43,0)) -> 2.388322962e-05 | J67: =+(1/'INPUT and OUTPUT'!$D$12)*(1/INDEX('Unit conversion calculations'!$B$43:$Q$58,MATCH('INPUT and OUTPUT'!$F$12,'Unit conversion calculations'!$B$43:$B$58,0),MATCH('Unit conversion calculations'!$B67,'Unit conversion calculations'!$B$43:$Q$43,0)))*INDEX('Unit conversion calculations'!$B$43:$Q$58,MATCH('INPUT and OUTPUT'!$F$13,'Unit conversion calculations'!$B$43:$B$58,0),MATCH('Unit conversion calculations'!J$62,'Unit conversion calculations'!$B$43:$Q$43,0)) -> 0.02388322962 | K67: =+(1/'INPUT and OUTPUT'!$D$12)*(1/INDEX('Unit conversion calculations'!$B$43:$Q$58,MATCH('INPUT and OUTPUT'!$F$12,'Unit conversion calculations'!$B$43:$B$58,0),MATCH('Unit conversion calculations'!$B67,'Unit conversion calculations'!$B$43:$Q$43,0)))*INDEX('Unit conversion calculations'!$B$43:$Q$58,MATCH('INPUT and OUTPUT'!$F$13,'Unit conversion calculations'!$B$43:$B$58,0),MATCH('Unit conversion calculations'!K$62,'Unit conversion calculations'!$B$43:$Q$43,0)) -> 0.006309281787 | L67: =+(1/'INPUT and OUTPUT'!$D$12)*(1/INDEX('Unit conversion calculations'!$B$43:$Q$58,MATCH('INPUT and OUTPUT'!$F$12,'Unit conversion calculations'!$B$43:$B$58,0),MATCH('Unit conversion calculations'!$B67,'Unit conversion calculations'!$B$43:$Q$43,0)))*INDEX('Unit conversion calculations'!$B$43:$Q$58,MATCH('INPUT and OUTPUT'!$F$13,'Unit conversion calculations'!$B$43:$B$58,0),MATCH('Unit conversion calculations'!L$62,'Unit conversion calculations'!$B$43:$Q$43,0)) -> 0.005253576068 | M67: =+(1/'INPUT and OUTPUT'!$D$12)*(1/INDEX('Unit conversion calculations'!$B$43:$Q$58,MATCH('INPUT and OUTPUT'!$F$12,'Unit conversion calculations'!$B$43:$B$58,0),MATCH('Unit conversion calculations'!$B67,'Unit conversion calculations'!$B$43:$Q$43,0)))*INDEX('Unit conversion calculations'!$B$43:$Q$58,MATCH('INPUT and OUTPUT'!$F$13,'Unit conversion calculations'!$B$43:$B$58,0),MATCH('Unit conversion calculations'!M$62,'Unit conversion calculations'!$B$43:$Q$43,0)) -> 0.0008434282944 | N67: =+(1/'INPUT and OUTPUT'!$D$12)*(1/INDEX('Unit conversion calculations'!$B$43:$Q$58,MATCH('INPUT and OUTPUT'!$F$12,'Unit conversion calculations'!$B$43:$B$58,0),MATCH('Unit conversion calculations'!$B67,'Unit conversion calculations'!$B$43:$Q$43,0)))*INDEX('Unit conversion calculations'!$B$43:$Q$58,MATCH('INPUT and OUTPUT'!$F$13,'Unit conversion calculations'!$B$43:$B$58,0),MATCH('Unit conversion calculations'!N$62,'Unit conversion calculations'!$B$43:$Q$43,0)) -> 0.0001502209901 | O67: =+(1/'INPUT and OUTPUT'!$D$12)*(1/INDEX('Unit conversion calculations'!$B$43:$Q$58,MATCH('INPUT and OUTPUT'!$F$12,'Unit conversion calculations'!$B$43:$B$58,0),MATCH('Unit conversion calculations'!$B67,'Unit conversion calculations'!$B$43:$Q$43,0)))*INDEX('Unit conversion calculations'!$B$43:$Q$58,MATCH('INPUT and OUTPUT'!$F$13,'Unit conversion calculations'!$B$43:$B$58,0),MATCH('Unit conversion calculations'!O$62,'Unit conversion calculations'!$B$43:$Q$43,0)) -> 23.67242526 | P67: =+(1/'INPUT and OUTPUT'!$D$12)*(1/INDEX('Unit conversion calculations'!$B$43:$Q$58,MATCH('INPUT and OUTPUT'!$F$12,'Unit conversion calculations'!$B$43:$B$58,0),MATCH('Unit conversion calculations'!$B67,'Unit conversion calculations'!$B$43:$Q$43,0)))*INDEX('Unit conversion calculations'!$B$43:$Q$58,MATCH('INPUT and OUTPUT'!$F$13,'Unit conversion calculations'!$B$43:$B$58,0),MATCH('Unit conversion calculations'!P$62,'Unit conversion calculations'!$B$43:$Q$43,0)) -> 0.02367242526 | Q67: =+(1/'INPUT and OUTPUT'!$D$12)*(1/INDEX('Unit conversion calculations'!$B$43:$Q$58,MATCH('INPUT and OUTPUT'!$F$12,'Unit conversion calculations'!$B$43:$B$58,0),MATCH('Unit conversion calculations'!$B67,'Unit conversion calculations'!$B$43:$Q$43,0)))*INDEX('Unit conversion calculations'!$B$43:$Q$58,MATCH('INPUT and OUTPUT'!$F$13,'Unit conversion calculations'!$B$43:$B$58,0),MATCH('Unit conversion calculations'!Q$62,'Unit conversion calculations'!$B$43:$Q$43,0)) -> 2.367242526e-05
B68: kCal | C68: =+C49 -> 0.001163 | D68: 1.163e-06 | E68: 3.965260875 | F68: 3.965260875e-06 | G68: 0.0041868 | H68: 1 | I68: =+(1/'INPUT and OUTPUT'!$D$12)*(1/INDEX('Unit conversion calculations'!$B$43:$Q$58,MATCH('INPUT and OUTPUT'!$F$12,'Unit conversion calculations'!$B$43:$B$58,0),MATCH('Unit conversion calculations'!$B68,'Unit conversion calculations'!$B$43:$Q$43,0)))*INDEX('Unit conversion calculations'!$B$43:$Q$58,MATCH('INPUT and OUTPUT'!$F$13,'Unit conversion calculations'!$B$43:$B$58,0),MATCH('Unit conversion calculations'!I$62,'Unit conversion calculations'!$B$43:$Q$43,0)) -> 9.999430579e-08 | J68: =+(1/'INPUT and OUTPUT'!$D$12)*(1/INDEX('Unit conversion calculations'!$B$43:$Q$58,MATCH('INPUT and OUTPUT'!$F$12,'Unit conversion calculations'!$B$43:$B$58,0),MATCH('Unit conversion calculations'!$B68,'Unit conversion calculations'!$B$43:$Q$43,0)))*INDEX('Unit conversion calculations'!$B$43:$Q$58,MATCH('INPUT and OUTPUT'!$F$13,'Unit conversion calculations'!$B$43:$B$58,0),MATCH('Unit conversion calculations'!J$62,'Unit conversion calculations'!$B$43:$Q$43,0)) -> 9.999430579e-05 | K68: =+(1/'INPUT and OUTPUT'!$D$12)*(1/INDEX('Unit conversion calculations'!$B$43:$Q$58,MATCH('INPUT and OUTPUT'!$F$12,'Unit conversion calculations'!$B$43:$B$58,0),MATCH('Unit conversion calculations'!$B68,'Unit conversion calculations'!$B$43:$Q$43,0)))*INDEX('Unit conversion calculations'!$B$43:$Q$58,MATCH('INPUT and OUTPUT'!$F$13,'Unit conversion calculations'!$B$43:$B$58,0),MATCH('Unit conversion calculations'!K$62,'Unit conversion calculations'!$B$43:$Q$43,0)) -> 2.641570099e-05 | L68: =+(1/'INPUT and OUTPUT'!$D$12)*(1/INDEX('Unit conversion calculations'!$B$43:$Q$58,MATCH('INPUT and OUTPUT'!$F$12,'Unit conversion calculations'!$B$43:$B$58,0),MATCH('Unit conversion calculations'!$B68,'Unit conversion calculations'!$B$43:$Q$43,0)))*INDEX('Unit conversion calculations'!$B$43:$Q$58,MATCH('INPUT and OUTPUT'!$F$13,'Unit conversion calculations'!$B$43:$B$58,0),MATCH('Unit conversion calculations'!L$62,'Unit conversion calculations'!$B$43:$Q$43,0)) -> 2.199567228e-05 | M68: =+(1/'INPUT and OUTPUT'!$D$12)*(1/INDEX('Unit conversion calculations'!$B$43:$Q$58,MATCH('INPUT and OUTPUT'!$F$12,'Unit conversion calculations'!$B$43:$B$58,0),MATCH('Unit conversion calculations'!$B68,'Unit conversion calculations'!$B$43:$Q$43,0)))*INDEX('Unit conversion calculations'!$B$43:$Q$58,MATCH('INPUT and OUTPUT'!$F$13,'Unit conversion calculations'!$B$43:$B$58,0),MATCH('Unit conversion calculations'!M$62,'Unit conversion calculations'!$B$43:$Q$43,0)) -> 3.531265583e-06 | N68: =+(1/'INPUT and OUTPUT'!$D$12)*(1/INDEX('Unit conversion calculations'!$B$43:$Q$58,MATCH('INPUT and OUTPUT'!$F$12,'Unit conversion calculations'!$B$43:$B$58,0),MATCH('Unit conversion calculations'!$B68,'Unit conversion calculations'!$B$43:$Q$43,0)))*INDEX('Unit conversion calculations'!$B$43:$Q$58,MATCH('INPUT and OUTPUT'!$F$13,'Unit conversion calculations'!$B$43:$B$58,0),MATCH('Unit conversion calculations'!N$62,'Unit conversion calculations'!$B$43:$Q$43,0)) -> 6.289452415e-07 | O68: =+(1/'INPUT and OUTPUT'!$D$12)*(1/INDEX('Unit conversion calculations'!$B$43:$Q$58,MATCH('INPUT and OUTPUT'!$F$12,'Unit conversion calculations'!$B$43:$B$58,0),MATCH('Unit conversion calculations'!$B68,'Unit conversion calculations'!$B$43:$Q$43,0)))*INDEX('Unit conversion calculations'!$B$43:$Q$58,MATCH('INPUT and OUTPUT'!$F$13,'Unit conversion calculations'!$B$43:$B$58,0),MATCH('Unit conversion calculations'!O$62,'Unit conversion calculations'!$B$43:$Q$43,0)) -> 0.0991117101 | P68: =+(1/'INPUT and OUTPUT'!$D$12)*(1/INDEX('Unit conversion calculations'!$B$43:$Q$58,MATCH('INPUT and OUTPUT'!$F$12,'Unit conversion calculations'!$B$43:$B$58,0),MATCH('Unit conversion calculations'!$B68,'Unit conversion calculations'!$B$43:$Q$43,0)))*INDEX('Unit conversion calculations'!$B$43:$Q$58,MATCH('INPUT and OUTPUT'!$F$13,'Unit conversion calculations'!$B$43:$B$58,0),MATCH('Unit conversion calculations'!P$62,'Unit conversion calculations'!$B$43:$Q$43,0)) -> 9.91117101e-05 | Q68: =+(1/'INPUT and OUTPUT'!$D$12)*(1/INDEX('Unit conversion calculations'!$B$43:$Q$58,MATCH('INPUT and OUTPUT'!$F$12,'Unit conversion calculations'!$B$43:$B$58,0),MATCH('Unit conversion calculations'!$B68,'Unit conversion calculations'!$B$43:$Q$43,0)))*INDEX('Unit conversion calculations'!$B$43:$Q$58,MATCH('INPUT and OUTPUT'!$F$13,'Unit conversion calculations'!$B$43:$B$58,0),MATCH('Unit conversion calculations'!Q$62,'Unit conversion calculations'!$B$43:$Q$43,0)) -> 9.91117101e-08
B69: m3 | C69: =+TRANSPOSE(1/I63:Q68) -> 11630.66227 | D69: 11.63066227 | E69: 39654866.78 | F69: 39.65486678 | G69: 41870.38419 | H69: 10000569.45 | I69: =+I50 -> 1 | J69: 1000 | K69: 264.1720524 | L69: 219.9692483 | M69: 35.31466672 | N69: =+N50 -> 6.28981057 | O69: 991173.5404 | P69: 991.1735404 | Q69: 0.9911735404
B70: Litre | C70: 11.63066227 | D70: 0.01163066227 | E70: 39654.86678 | F70: 0.03965486678 | G70: 41.87038419 | H70: 10000.56945 | I70: =+I51 -> 0.001 | J70: 1 | K70: 0.2641720524 | L70: 0.2199692483 | M70: 0.03531466672 | N70: =+N51 -> 0.00628981057 | O70: 991.1735404 | P70: 0.9911735404 | Q70: 0.0009911735404
B71: US Gallon | C71: 44.02684603 | D71: 0.04402684603 | E71: 150110 | F71: 0.15011 | G71: 158.4966457 | H71: 37856.27345 | I71: =+I52 -> 0.003785411784 | J71: 3.785411784 | K71: 1 | L71: 0.8326741846 | M71: 0.1336805556 | N71: =+N52 -> 0.02380952305 | O71: 3752 | P71: 3.752 | Q71: 0.003752
B72: Imperial Gallon | C72: 52.87403746 | D72: 0.05287403746 | E72: 180274.5933 | F72: 0.1802745933 | G72: 190.3465348 | H72: 45463.48879 | I72: =+I53 -> 0.00454609 | J72: 4.54609 | K72: 1.200949926 | L72: 1 | M72: 0.1605436532 | N72: =+N53 -> 0.02859404493 | O72: 4505.96412 | P72: 4.50596412 | Q72: 0.00450596412
B73: ft3 | C73: 329.3436794 | D73: 0.3293436794 | E73: 1122900.779 | F73: 1.122900779 | G73: 1185.637246 | H73: 283184.591 | I73: =+I54 -> 0.02831684659 | J73: 28.31684659 | K73: 7.480519481 | L73: 6.228835459 | M73: 1 | N73: =+N54 -> 0.178107601 | O73: 28066.90909 | P73: 28.06690909 | Q73: 0.02806690909
B74: bbl (oil) | C74: 1849.127592 | D74: 1.849127592 | E74: 6304620.201 | F74: 6.304620201 | G74: 6656.859332 | H74: 1589963.536 | I74: 0.1589873 | J74: 158.9873 | K74: 42.00000134 | L74: 34.97231687 | M74: 5.614583512 | N74: =+N55 -> 1 | O74: 157584.005 | P74: 157.584005 | Q74: 0.157584005
B75: gram | C75: 0.01173423402 | D75: 1.173423402e-05 | E75: 40.00799574 | F75: 4.000799574e-05 | G75: 0.04224324246 | H75: 10.08962512 | I75: =+I56 -> 1.00890506e-06 | J75: 0.00100890506 | K75: 0.0002665245203 | L75: 0.0002219280876 | M75: 3.562914594e-05 | N75: =+N56 -> 6.345821708e-06 | O75: 1 | P75: 0.001 | Q75: 1e-06
B76: kg | C76: 11.73423402 | D76: 0.01173423402 | E76: 40007.99574 | F76: 0.04000799574 | G76: 42.24324246 | H76: 10089.62512 | I76: =+I57 -> 0.00100890506 | J76: 1.00890506 | K76: 0.2665245203 | L76: 0.2219280876 | M76: 0.03562914594 | N76: =+N57 -> 0.006345821708 | O76: 1000 | P76: 1 | Q76: 0.001
B77: Metric Tonne | C77: 11734.23402 | D77: 11.73423402 | E77: 40007995.74 | F77: 40.00799574 | G77: 42243.24246 | H77: 10089625.12 | I77: =+I58 -> 1.00890506 | J77: 1008.90506 | K77: 266.5245203 | L77: 221.9280876 | M77: 35.62914594 | N77: =+N58 -> 6.345821708 | O77: 1000000 | P77: 1000 | Q77: 1
